[Event "CZE-ch U10 Open 2023"]
[Site "Teplice"]
[Date "2023.03.12"]
[Round "2.6"]
[White "Kupka, Frantisek"]
[Black "Koutecky, Vaclav"]
[Result "0-1"]
[ECO "C55"]
[WhiteElo "1988"]
[BlackElo "2060"]
[Annotator "TA"]
[PlyCount "82"]
[EventDate "2023.03.09"]
[EventType "swiss"]
[EventCountry "CZE"]
[SourceTitle "playchess.com"]
[Source "ChessBase"]
[SourceQuality "1"]
[TimeControl "40/5400+30:1800+30"]

{[%evp 9,81,-55,-50,-60,-60,-64,-6,-274,-275,-402,-331,-369,-345,-346,-337,-342,-342,-343,-333,-331,-299,-516,-509,-682,-231,-233,-229,-228,-229,-220,-160,-180,-133,-139,-139,-139,-139,-139,-139,-364,-353,-439,-438,-431,-421,-643,-598,-5148,-5148,-2869,-1947,-29968,-29969,-29966,-29960,-29973,-12686,-29982,-29972,-29984,-29985,-29990,-29991,-29991,-29992,-29992,-29993,-29993,-29994,-29995,-29996,-29997,-29998,-29999]} 1. e4 {[%emt 0:00:03]} e5 {[%emt 0:00:04]} 2. Nf3 {[%emt 0:00:08]} Nc6 {[%emt 0:00:05]} 3. Bc4 {[%emt 0:00:14]} Nf6 {[%emt 0:00:07]} 4. d3 {[%emt 0:00:09]} d5 {[%emt 0:00:06]} 5. Bb5 {[%emt 0:00:53]} dxe4 {[%emt 0:09:18]} 6. Bxc6+ {[%emt 0:02:05][%mdl 64] [#] Remove Defender. C55: Two Knights: 4 d3, 4 d4 exd4 5 e5 and Max Lange Attack.} bxc6 {[%emt 0:00:56]} 7. Nxe5 {[%emt 0:01:43] [#]} Bc5 $146 {[%emt 0:04:17]} (7... Qd4 $15 8. Nc4 (8. Nxc6 $2 {too greedy.} Qa4 $19) 8... Bg4) ({Predecessor:} 7... Qd4 8. f4 Bd6 9. Nc4 Bg4 10. Qd2 O-O 11. Qc3 Qxc3+ 12. Nxc3 exd3 13. cxd3 Rfe8+ 14. Kf2 Rad8 15. Be3 Bf5 16. Nxd6 Rxd6 17. Bxa7 Ng4+ {½-½ Amuso,J (736)-Nesbit,A (800) SN-2016-0-00806}) 8. Nxc6 $2 {[%emt 0:02:12][%mdl 8192]} (8. O-O $11 {and White is okay.}) 8... Qd5 {[%emt 0:01:38]} 9. Nxa7 {[%emt 0:03:45]} (9. b4 $142 Bb6 10. c4 Qxc6 11. c5) 9... Bxa7 {[%emt 0:04:00] A strong pair of Bishops.} 10. O-O {[%emt 0:01:40]} O-O {[%emt 0:02:59]} 11. Nc3 {[%emt 0:03:17]} Qc6 {[%emt 0:01:44]} 12. dxe4 {[%emt 0:02:04]} Nxe4 {[%emt 0:01:56]} 13. Nxe4 {[%emt 0:02:31]} Qxe4 {[%emt 0:00:25]} 14. Re1 {[%emt 0:01:15]} Qc6 {[%emt 0:00:27]} 15. Qe2 $2 {[%emt 0:01:32]} (15. Be3 {was worth a try.}) 15... Bb7 $19 {[%emt 0:00:59][%csl Gb7][%cal Rc6g2] [#]} 16. Qg4 {[%emt 0:02:09]} Qg6 $2 {[%emt 0:01:30]} (16... f5 17. Qf3 Qxf3 18. gxf3 Rf6) 17. Qxg6 {[%emt 0:01:23]} fxg6 $40 {[%emt 0:00:27][%mdl 128] Black wants a kill.} 18. Be3 {[%emt 0:01:04]} Bxe3 {[%emt 0:00:43]} 19. Rxe3 {[%emt 0:00:50]} Bd5 {[%emt 0:02:43]} 20. b3 {[%emt 0:01:05]} Rae8 {[%emt 0:00:32]} (20... Rfe8 $19 {Threatens to win with ...Rxe3.} 21. Rxe8+ Rxe8) 21. Rae1 {[%emt 0:01:01]} Rxe3 {[%emt 0:00:40]} 22. Rxe3 $17 {[%emt 0:00:17][%mdl 4096] Endgame KRB-KR} Kf7 {[%emt 0:00:21]} 23. c4 {[%emt 0:01:24]} Bb7 {[%emt 0:00:21]} 24. a4 $2 {[%emt 0:02:24] White does not recover from this.} (24. f3 $17 {might work better.}) 24... Re8 $19 {[%emt 0:01:39]} 25. Kf1 {[%emt 0:01:34]} Rxe3 {[%emt 0:00:09]} 26. fxe3 {[%emt 0:00:09] KB-KP} Ke6 {[%emt 0:00:19]} 27. Ke2 {[%emt 0:00:28]} (27. b4 $142 Ba6 28. Ke2 Bxc4+ 29. Kd2) 27... Bxg2 {[%emt 0:00:54] ...c5 is the strong threat.} 28. Kd3 {[%emt 0:01:13]} c5 {[%emt 0:00:17] Strongly threatening ...g5.} 29. Kc3 {[%emt 0:00:54]} h5 {[%emt 0:01:25]} 30. b4 {[%emt 0:01:15]} cxb4+ {[%emt 0:00:11]} 31. Kxb4 {[%emt 0:00:17]} Kd6 {[%emt 0:00:12]} 32. Kb5 {[%emt 0:01:48]} Kc7 {[%emt 0:00:48]} (32... Bc6+ $142 33. Kb4 g5 34. Kc3 g4 35. Kd3 h4 36. Ke2 g3 37. h3 Bxa4 38. Kf3 Bd7 39. Kg2 Kc5 40. e4 Kxc4 41. Kf3 Bxh3 42. Ke3 Be6 43. Kf3 Kd4 44. Ke2 h3 45. Kd2 g2 46. Ke2 g1=Q 47. Kd2 Qf2+ 48. Kc1 h2 49. Kd1 h1=Q#) 33. Ka6 {[%emt 0:01:44]} Bf1 {[%emt 0:00:14] Black mates.} 34. Ka7 {[%emt 0:01:11]} Bxc4 {[%emt 0:00:12] KB-K3P} 35. a5 {[%emt 0:01:12]} g5 {[%emt 0:00:18][%cal Bg6g5,Bg5g4,Bg4g3,Bg3g2][%mdl 32]} 36. e4 {[%emt 0:02:18]} g4 {[%emt 0:00:16]} 37. e5 {[%emt 0:00:27]} h4 {[%emt 0:00:17]} 38. e6 {[%emt 0:00:42]} Bxe6 39. a6 {[%emt 0:00:38]} g3 {[%emt 0:00:17]} 40. Ka8 {[%emt 0:01:00]} g2 {[%emt 0:00:11]} 41. a7 {[%emt 0:30:43]} Bd5# {Weighted Error Value: White=1.27/Black=0.48} 0-1

[Event "CZE-ch U10 Open 2023"]
[Site "Teplice"]
[Date "2023.03.12"]
[Round "2.7"]
[White "Kozusnik, Jan"]
[Black "Broz, Pavel"]
[Result "1-0"]
[ECO "C44"]
[WhiteElo "1286"]
[BlackElo "1870"]
[Annotator "NA RC COMBH"]
[PlyCount "51"]
[EventDate "2023.03.09"]
[EventType "swiss"]
[EventCountry "CZE"]
[SourceTitle "playchess.com"]
[Source "ChessBase"]
[SourceQuality "1"]
[TimeControl "40/5400+30:1800+30"]

1. e4 {[%emt 0:00:03]} e5 {[%emt 0:00:28]} 2. Nf3 {[%emt 0:00:17]} Nc6 {[%emt 0:01:02]} 3. d4 {[%emt 0:00:15]} exd4 {[%emt 0:01:34]} 4. Bc4 {[%emt 0:00:19]} Bc5 {[%emt 0:02:38]} 5. c3 {[%emt 0:00:28]} Qf6 {[%emt 0:01:22]} 6. Bg5 {[%emt 0:01:59]} Qg6 {[%emt 0:02:42]} 7. O-O {[%emt 0:02:09]} Nge7 {[%emt 0:01:36]} 8. Bxe7 {[%emt 0:01:53]} Nxe7 {[%emt 0:00:12]} 9. cxd4 {[%emt 0:00:39]} Bb6 {[%emt 0:00:42]} 10. Ne5 {[%emt 0:00:49]} Qxe4 {[%emt 0:00:47]} 11. Bxf7+ {[%emt 0:09:37]} Kd8 12. Re1 {[%emt 0:03:01]} Qxd4 {[%emt 0:01:23]} 13. Qe2 {[%emt 0:00:56]} c6 {[%emt 0:02:56]} 14. Nc3 {[%emt 0:13:55]} Rf8 {[%emt 0:01:21]} 15. Nxc6+ {[%emt 0:07:57]} bxc6 {[%emt 0:02:25]} 16. Qxe7+ {[%emt 0:00:42]} Kc7 {[%emt 0:00:06]} 17. Qxf8 {[%emt 0:00:42]} Qxf2+ {[%emt 0:00:22]} 18. Kh1 {[%emt 0:00:27]} Bc5 {[%emt 0:00:49]} 19. Qxg7 {[%emt 0:00:44]} Rb8 {[%emt 0:02:15]} 20. Re2 {[%emt 0:01:51]} Qf4 {[%emt 0:02:55]} 21. Qe5+ {[%emt 0:00:24]} Qxe5 {[%emt 0:00:07]} 22. Rxe5 {[%emt 0:00:08]} Rxb2 {[%emt 0:00:03]} 23. Rxc5 {[%emt 0:00:29]} d6 {[%emt 0:01:04]} 24. Rh5 {[%emt 0:00:32]} Bb7 {[%emt 0:01:08]} 25. Rxh7 {[%emt 0:00:25]} c5 {[%emt 0:01:18]} 26. Bd5+ {[%emt 0:00:13]} 1-0

[Event "CZE-ch U10 Open 2023"]
[Site "Teplice"]
[Date "2023.03.12"]
[Round "2.8"]
[White "Fadrny, Jonas"]
[Black "Skoloud, Josef"]
[Result "0-1"]
[ECO "C24"]
[WhiteElo "1247"]
[BlackElo "1090"]
[Annotator "NA RC COMBH"]
[PlyCount "86"]
[EventDate "2023.03.09"]
[EventType "swiss"]
[EventCountry "CZE"]
[SourceTitle "playchess.com"]
[Source "ChessBase"]
[SourceQuality "1"]
[TimeControl "40/5400+30:1800+30"]

1. e4 {[%emt 0:00:04]} e5 {[%emt 0:00:05]} 2. Bc4 {[%emt 0:00:10]} Nf6 {[%emt 0:00:25]} 3. d3 {[%emt 0:00:14]} d6 {[%emt 0:00:28]} 4. Nf3 {[%emt 0:00:49]} Nc6 {[%emt 0:01:10]} 5. O-O {[%emt 0:00:38]} Bg4 {[%emt 0:00:21]} 6. h3 {[%emt 0:00:50]} Bh5 {[%emt 0:00:38]} 7. c3 {[%emt 0:00:48]} Qd7 {[%emt 0:02:08]} 8. Re1 {[%emt 0:00:43]} Be7 {[%emt 0:02:23]} 9. Nbd2 {[%emt 0:02:25]} g5 {[%emt 0:07:50]} 10. g4 {[%emt 0:05:55]} Bg6 {[%emt 0:01:11]} 11. Nf1 {[%emt 0:00:24]} h5 {[%emt 0:04:44]} 12. N3h2 {[%emt 0:01:52]} d5 {[%emt 0:05:58]} 13. exd5 {[%emt 0:02:19]} Nxd5 {[%emt 0:03:03]} 14. Bb5 {[%emt 0:04:54]} f6 {[%emt 0:02:15]} 15. Bxc6 {[%emt 0:04:01]} Qxc6 {[%emt 0:02:34]} 16. Qf3 {[%emt 0:04:14]} O-O-O {[%emt 0:02:40]} 17. Rd1 {[%emt 0:03:24]} Bd6 {[%emt 0:04:05]} 18. c4 {[%emt 0:02:08]} Nb4 {[%emt 0:01:04]} 19. Qxc6 {[%emt 0:00:46]} Nxc6 {[%emt 0:00:16]} 20. Be3 {[%emt 0:01:17]} Nb4 {[%emt 0:04:07]} 21. Rd2 {[%emt 0:02:56]} Nxd3 {[%emt 0:03:27]} 22. Ng3 {[%emt 0:03:08]} Bb4 {[%emt 0:03:59]} 23. Rdd1 {[%emt 0:01:06]} Nxb2 {[%emt 0:04:21]} 24. Rxd8+ {[%emt 0:01:26]} Kxd8 {[%emt 0:02:47]} 25. a3 {[%emt 0:01:26]} Ba5 {[%emt 0:05:03]} 26. gxh5 {[%emt 0:01:29]} Bxh5 {[%emt 0:02:45]} 27. Rc1 {[%emt 0:01:35]} Kc8 {[%emt 0:01:52]} 28. Rc2 {[%emt 0:01:00]} Na4 {[%emt 0:02:26]} 29. Nxh5 {[%emt 0:00:58]} Rxh5 {[%emt 0:01:24]} 30. Kg2 {[%emt 0:00:43]} Nb6 {[%emt 0:02:19]} 31. c5 {[%emt 0:00:48]} Nd5 {[%emt 0:00:29]} 32. c6 {[%emt 0:01:16]} b6 {[%emt 0:00:57]} 33. Bd2 {[%emt 0:00:28]} Bxd2 {[%emt 0:02:03]} 34. Rxd2 {[%emt 0:00:12]} Nf4+ {[%emt 0:00:18]} 35. Kg1 {[%emt 0:01:06]} Rxh3 {[%emt 0:01:13]} 36. Rd7 {[%emt 0:00:42]} Rxa3 {[%emt 0:00:48]} 37. Rg7 {[%emt 0:00:51]} Kd8 {[%emt 0:01:13]} 38. Ng4 {[%emt 0:00:27]} Ne6 {[%emt 0:05:32]} 39. Rh7 {[%emt 0:01:01]} Rf3 {[%emt 0:01:02]} 40. Nh6 {[%emt 0:02:27]} Rd3 {[%emt 0:01:07]} 41. Nf7+ {[%emt 0:30:41]} Kc8 {[%emt 0:30:42]} 42. Kf1 {[%emt 0:02:03]} a5 {[%emt 0:00:32]} 43. Ke2 {[%emt 0:00:22]} Rd4 {[%emt 0:00:10]} 0-1

[Event "CZE-ch U10 Open 2023"]
[Site "Teplice"]
[Date "2023.03.13"]
[Round "3.1"]
[White "Koutecky, Vaclav"]
[Black "Filindash, Nikita"]
[Result "0-1"]
[ECO "B50"]
[WhiteElo "2060"]
[BlackElo "2021"]
[Annotator "TA"]
[PlyCount "64"]
[EventDate "2023.03.09"]
[EventType "swiss"]
[EventCountry "CZE"]
[SourceTitle "playchess.com"]
[Source "ChessBase"]
[SourceQuality "1"]
[TimeControl "40/5400+30:1800+30"]

{[%evp 9,64,1,13,6,14,15,18,17,48,32,78,50,81,47,108,54,73,55,63,-17,-4,-41,-41,-52,-46,-117,-110,-343,-340,-336,-325,-328,-326,-364,-345,-366,-364,-484,-483,-610,-610,-616,-608,-616,-613,-612,-575,-1224,-1053,-1404,-1331,-1420,-1374,-2252,-2118,-2194,-1280]} 1. e4 {[%emt 0:00:30]} c5 {[%emt 0:00:07]} 2. Nf3 {[%emt 0:00:09]} d6 {[%emt 0:00:06]} 3. c3 {[%emt 0:00:12]} Nf6 {[%emt 0:00:12]} 4. Be2 {[%emt 0:00:09]} g6 {[%emt 0:00:08]} 5. Qc2 {[%emt 0:00:48]} Bg7 {[%emt 0:00:17]} 6. d4 {[%emt 0:00:12] B50: Sicilian: 2...d6, Miscellaneous.} cxd4 {[%emt 0:01:28]} 7. cxd4 {[%emt 0:00:16]} O-O {[%emt 0:01:20]} 8. O-O {[%emt 0:01:21] The position is equal.} Bd7 {[%emt 0:09:51]} 9. Nc3 {[%emt 0:04:07] [#]} Na6 $146 {[%emt 0:05:50]} (9... Nc6 $14) ({Predecessor:} 9... a5 10. Bg5 Nc6 11. Rac1 Rc8 12. Qb3 b6 13. Rfd1 a4 14. Qc2 Nb4 15. Qb1 d5 {0-1 Ramirez,M (1609)-Montenegro,H (1684) COL-ch (Women) 2018 (5)}) 10. Bf4 Rc8 {[%emt 0:01:24]} 11. Qb3 {[%emt 0:12:47]} Qb6 {[%emt 0:14:06]} (11... Bc6 $14) 12. h3 {[%emt 0:07:18]} (12. e5 $16 {aiming for Qxb6.} Nh5 13. Be3) 12... Be6 {[%emt 0:37:08]} 13. d5 {[%emt 0:03:17]} (13. Qxb6 {simplifies} axb6 14. Rfd1 Bc4 15. Bxc4 Rxc4 16. Be3) 13... Bd7 {[%emt 0:00:08][%cal Oc8c3]} 14. Rfd1 {[%emt 0:01:16] [#]} (14. e5 $14 dxe5 15. Nxe5) 14... Rxc3 $1 $11 {[%emt 0:11:12][%mdl 64] Remove Defender} 15. Qxb6 {[%emt 0:03:38]} (15. Qxc3 $5 {[%cal Re4e5]} Nxd5 16. Qd2 Nxf4 17. Qxf4 $11) 15... axb6 {[%emt 0:00:11]} 16. bxc3 {[%emt 0:00:24] Threatens to win with e5.} Nxe4 {[%emt 0:00:04]} 17. c4 {[%emt 0:02:42]} Nc3 {[%emt 0:01:01] Black is more active.} (17... Bxa1 {simplifies} 18. Rxa1 Ra8 19. Rc1 Nac5) 18. Rd2 {[%emt 0:00:42] This costs White the game.} (18. Bf1 $17 {was called for.}) 18... Nxe2+ $19 {[%emt 0:00:06][%mdl 64] Discovered Attack} 19. Rxe2 {[%emt 0:00:14] Rb1 would be deadly.} Bxa1 {[%emt 0:00:11]} 20. Rxe7 {[%emt 0:00:20]} Rd8 {[%emt 0:12:26]} 21. Bxd6 {[%emt 0:00:30] [#]} Bxh3 $1 {[%emt 0:00:26][%mdl 576] Discovered Attack} 22. Be5 {[%emt 0:01:37]} (22. Bf4 Bc8) 22... Bxe5 {[%emt 0:01:03]} 23. Rxe5 {[%emt 0:00:20]} Bg4 {[%emt 0:00:29] Black is clearly winning.} 24. Re4 {[%emt 0:00:48]} Bxf3 {[%emt 0:00:21]} 25. gxf3 {[%emt 0:00:05][%mdl 4096] Endgame KRN-KR} Kf8 {[%emt 0:00:21]} 26. Kg2 {[%emt 0:00:15]} Nc5 {[%emt 0:00:10]} 27. Re3 {[%emt 0:00:54] [#]} b5 $1 {[%emt 0:01:13][%cal Bb6b5,Bb5c4][%mdl 32]} 28. Re5 {[%emt 0:01:37]} (28. cxb5 h5) 28... f6 {[%emt 0:00:27]} 29. Re1 {[%emt 0:00:46]} bxc4 {[%emt 0:00:08][%cal Oc5d3] Strongly threatening ...Nd3!} 30. Rc1 {[%emt 0:00:34]} b5 {[%emt 0:00:19]} 31. a3 {[%emt 0:18:55]} Rxd5 {[%emt 0:00:42] White must now prevent ...Nd3.} 32. Rc3 {[%emt 0:01:17]} Na4 {[%emt 0:00:14] Weighted Error Value: White=1.00/Black=0.19 (very precise)} 0-1

[Event "CZE-ch U10 Open 2023"]
[Site "Teplice"]
[Date "2023.03.13"]
[Round "3.2"]
[White "Kolar, Edvard"]
[Black "Kroulik, Stepan"]
[Result "1-0"]
[ECO "D02"]
[WhiteElo "1518"]
[BlackElo "1228"]
[Annotator "NA RC COMBH"]
[PlyCount "95"]
[EventDate "2023.03.09"]
[EventType "swiss"]
[EventCountry "CZE"]
[SourceTitle "playchess.com"]
[Source "ChessBase"]
[SourceQuality "1"]
[TimeControl "40/5400+30:1800+30"]

1. d4 {[%emt 0:00:01]} d5 {[%emt 0:00:14]} 2. Nf3 {[%emt 0:00:09]} Bg4 {[%emt 0:01:14]} 3. Bf4 {[%emt 0:00:25]} Nc6 {[%emt 0:00:47]} 4. e3 {[%emt 0:00:51]} a6 {[%emt 0:00:56]} 5. Nbd2 {[%emt 0:01:04]} Nf6 {[%emt 0:00:17]} 6. Bd3 {[%emt 0:01:02]} e6 {[%emt 0:01:02]} 7. h3 {[%emt 0:01:43]} Bh5 {[%emt 0:00:19]} 8. g4 {[%emt 0:01:32]} Bg6 {[%emt 0:00:31]} 9. Ne5 {[%emt 0:00:45]} Nxe5 {[%emt 0:00:35]} 10. dxe5 {[%emt 0:00:53]} Nd7 11. h4 {[%emt 0:01:58]} Bxd3 {[%emt 0:01:11]} 12. cxd3 {[%emt 0:00:08]} Be7 {[%emt 0:00:41]} 13. g5 {[%emt 0:02:09]} c5 {[%emt 0:02:51]} 14. Qg4 {[%emt 0:02:35]} Qc7 {[%emt 0:02:34]} 15. Qg3 {[%emt 0:03:29]} O-O-O {[%emt 0:05:58]} 16. Rc1 {[%emt 0:03:06]} Kb8 {[%emt 0:00:59]} 17. b4 {[%emt 0:01:57]} Qb6 {[%emt 0:00:47]} 18. bxc5 {[%emt 0:02:36]} Nxc5 {[%emt 0:01:01]} 19. O-O {[%emt 0:02:43]} Nxd3 {[%emt 0:01:09]} 20. Rb1 {[%emt 0:00:18]} Qa5 {[%emt 0:00:58]} 21. e4 {[%emt 0:04:10]} Nxf4 {[%emt 0:01:23]} 22. Qxf4 {[%emt 0:00:32]} Rhf8 {[%emt 0:00:46]} 23. exd5 {[%emt 0:01:25]} Rxd5 {[%emt 0:01:11]} 24. Nc4 {[%emt 0:00:49]} Qxa2 {[%emt 0:02:27]} 25. Nb6 {[%emt 0:01:58]} Rdd8 {[%emt 0:01:06]} 26. Qe4 {[%emt 0:04:09]} h6 {[%emt 0:09:07]} 27. Nc4 {[%emt 0:08:31]} Rd7 {[%emt 0:04:26]} 28. Rb2 {[%emt 0:02:06]} Qa4 {[%emt 0:01:41]} 29. Rfb1 {[%emt 0:02:58]} b5 {[%emt 0:02:05]} 30. Qe2 {[%emt 0:04:19]} b4 {[%emt 0:05:50]} 31. Nb6 {[%emt 0:01:12]} Qc6 {[%emt 0:00:57]} 32. Nxd7+ {[%emt 0:00:26]} Qxd7 {[%emt 0:00:15]} 33. Qxa6 {[%emt 0:02:15]} hxg5 {[%emt 0:01:28]} 34. Rxb4+ {[%emt 0:02:34]} Bxb4 {[%emt 0:00:49]} 35. Rxb4+ {[%emt 0:00:06]} Kc7 {[%emt 0:00:31]} 36. Qa7+ {[%emt 0:01:03]} Kd8 {[%emt 0:00:43]} 37. Rb8+ {[%emt 0:00:14]} Ke7 {[%emt 0:00:09]} 38. Qxd7+ {[%emt 0:00:06]} Kxd7 {[%emt 0:00:19]} 39. Rxf8 {[%emt 0:00:07]} Ke7 {[%emt 0:00:26]} 40. Rg8 {[%emt 0:00:08]} g6 {[%emt 0:00:16]} 41. hxg5 {[%emt 0:30:14]} Kd7 {[%emt 0:30:56]} 42. f4 {[%emt 0:00:14]} Ke7 {[%emt 0:00:12]} 43. Kf2 {[%emt 0:00:12]} Kd7 {[%emt 0:00:21]} 44. Ke3 {[%emt 0:00:12]} Ke7 {[%emt 0:00:23]} 45. Kd4 {[%emt 0:00:33]} Kd7 {[%emt 0:00:09]} 46. Kc5 {[%emt 0:00:08]} Ke7 {[%emt 0:00:12]} 47. Kc6 {[%emt 0:00:12]} f6 {[%emt 0:00:38]} 48. gxf6+ {[%emt 0:00:18]} 1-0

[Event "CZE-ch U10 Open 2023"]
[Site "Teplice"]
[Date "2023.03.13"]
[Round "3.3"]
[White "Trejbal, Jindrich"]
[Black "Gernert, Tomas"]
[Result "1-0"]
[ECO "A06"]
[WhiteElo "1937"]
[BlackElo "1362"]
[Annotator "TA"]
[PlyCount "43"]
[EventDate "2023.03.09"]
[EventType "swiss"]
[EventCountry "CZE"]
[SourceTitle "playchess.com"]
[Source "ChessBase"]
[SourceQuality "1"]
[TimeControl "40/5400+30:1800+30"]

{[%evp 9,43,8,69,3,14,14,7,0,18,0,13,11,15,0,52,-42,454,160,176,107,397,396,385,385,403,395,382,367,431,438,479,435,537,521,522,413]} 1. Nf3 {[%emt 0:00:02]} d5 {[%emt 0:00:11]} 2. c4 {[%emt 0:00:06]} c6 {[%emt 0:01:39]} 3. e3 {[%emt 0:01:11]} Bg4 {[%emt 0:00:19]} 4. h3 {[%emt 0:01:16]} Bh5 {[%emt 0:00:32]} 5. Nc3 {[%emt 0:02:08]} Nf6 {[%emt 0:01:11]} (5... e6 $11) 6. Be2 {[%emt 0:03:56] [#] A11: English Opening: 1...c6.} (6. Qb3 $14) 6... Bxf3 $146 {[%emt 0:01:00]} ({Predecessor:} 6... e6 7. g4 Bg6 8. Ne5 Nbd7 9. Nxg6 hxg6 10. d4 Be7 11. Bd2 Qc7 12. g5 Ne4 13. Nxe4 dxe4 {½-½ Simon,R (2075)-Friedrich,N (2284) SUI-chT Switzerland 2021 (5.8)}) 7. Bxf3 {[%emt 0:00:49] Black should prevent Qb3.} dxc4 {[%emt 0:14:06]} 8. Be2 {[%emt 0:04:47] The position is equal.} b5 {[%emt 0:00:11]} 9. O-O {[%emt 0:02:32]} e5 {[%emt 0:00:12]} 10. b3 {[%emt 0:06:33]} cxb3 {[%emt 0:02:05]} 11. Qxb3 {[%emt 0:03:40]} Bc5 {[%emt 0:00:45]} (11... a5 $11) 12. Ba3 {[%emt 0:07:49]} ({White should play} 12. Bf3 $14) 12... Qd6 $2 {[%emt 0:09:54][%mdl 8192]} (12... Bxa3 $15 {stays ahead.} 13. Qxa3 a5) 13. Bxc5 $2 {[%emt 0:08:29]} (13. Nxb5 $18 {is the precise move to win.} cxb5 14. Bxc5 Qxc5 15. Rfc1 (15. Qxb5+ $2 {is the wrong capture.} Qxb5 16. Bxb5+ Nbd7 $19) 15... Qxc1+ 16. Rxc1) 13... Qxc5 $16 {[%emt 0:00:09]} 14. Rac1 {[%emt 0:01:18]} (14. d4 $18 Qe7 15. Nxb5) 14... Qd6 {[%emt 0:01:34][%mdl 8192] [#]} (14... O-O $16) 15. Nxb5 $1 $18 {[%emt 0:08:52][%mdl 512]} Qd8 {[%emt 0:03:48] [#]} (15... Qe7 16. Nd6+) 16. Nd6+ {[%emt 0:03:33][%mdl 512]} Qxd6 {[%emt 0:07:00]} 17. Qb7 {[%emt 0:00:48]} O-O {[%emt 0:00:34] White must now prevent ...Nbd7.} 18. Qxa8 {[%emt 0:00:22]} Qc7 {[%emt 0:00:07] [#]} 19. Rb1 $1 {[%emt 0:01:28] White is clearly winning.} Ne4 {[%emt 0:13:26]} 20. Qb7 {[%emt 0:04:02]} Qc8 {[%emt 0:00:48]} 21. Qxc8 {[%emt 0:00:39]} Rxc8 {[%emt 0:00:08]} 22. Rfd1 {[%emt 0:00:29] Weighted Error Value: White=0.63/Black=0.84} 1-0

[Event "CZE-ch U10 Open 2023"]
[Site "Teplice"]
[Date "2023.03.13"]
[Round "3.4"]
[White "Moravec, Rene"]
[Black "Vo, Daniel"]
[Result "1/2-1/2"]
[ECO "A25"]
[WhiteElo "1216"]
[BlackElo "1440"]
[Annotator "NA RC COMBH"]
[PlyCount "118"]
[EventDate "2023.03.09"]
[EventType "swiss"]
[EventCountry "CZE"]
[SourceTitle "playchess.com"]
[Source "ChessBase"]
[SourceQuality "1"]
[TimeControl "40/5400+30:1800+30"]

1. c4 {[%emt 0:00:11]} e5 {[%emt 0:10:13]} 2. Nc3 {[%emt 0:00:37]} Nc6 {[%emt 0:00:18]} 3. d3 {[%emt 0:00:37]} Nf6 {[%emt 0:00:35]} 4. g3 {[%emt 0:01:04]} d5 {[%emt 0:00:37]} 5. cxd5 {[%emt 0:01:04]} Nxd5 {[%emt 0:00:10]} 6. Bg2 {[%emt 0:00:46]} Nxc3 {[%emt 0:00:17]} 7. bxc3 {[%emt 0:00:13]} Bc5 {[%emt 0:00:25]} 8. Nf3 {[%emt 0:01:13]} Bg4 {[%emt 0:00:50]} 9. O-O {[%emt 0:01:15]} O-O {[%emt 0:00:49]} 10. Qb3 {[%emt 0:02:25]} Bb6 {[%emt 0:01:58]} 11. Bg5 {[%emt 0:01:58]} Qd7 {[%emt 0:00:49]} 12. Rfd1 {[%emt 0:00:59]} h6 {[%emt 0:00:38]} 13. Be3 {[%emt 0:01:50]} Rfd8 {[%emt 0:02:38]} 14. Rd2 {[%emt 0:03:56]} Qe7 {[%emt 0:01:10]} 15. Rad1 {[%emt 0:01:22]} Rd7 {[%emt 0:01:10]} 16. d4 {[%emt 0:04:26]} e4 {[%emt 0:00:35]} 17. Ne1 {[%emt 0:04:49]} Rad8 {[%emt 0:00:45]} 18. Bf4 {[%emt 0:01:11]} Na5 {[%emt 0:01:03]} 19. Qb4 {[%emt 0:08:52]} Qxb4 {[%emt 0:00:42]} 20. cxb4 {[%emt 0:01:24]} Nc6 {[%emt 0:00:14]} 21. h3 {[%emt 0:07:01]} Bf5 {[%emt 0:00:28]} 22. e3 {[%emt 0:02:25]} Nxb4 {[%emt 0:00:50]} 23. Ra1 {[%emt 0:02:35]} g5 {[%emt 0:00:29]} 24. Be5 {[%emt 0:02:02]} Rd5 {[%emt 0:00:09]} 25. Rad1 {[%emt 0:01:13]} Nc6 {[%emt 0:00:24]} 26. f4 {[%emt 0:03:17]} Ba5 {[%emt 0:00:33]} 27. Rb2 {[%emt 0:00:52]} Nxe5 {[%emt 0:00:16]} 28. fxe5 {[%emt 0:00:33]} Rxe5 {[%emt 0:00:08]} 29. Rdb1 {[%emt 0:03:01]} Ree8 {[%emt 0:00:21]} 30. Nc2 {[%emt 0:01:34]} Bb6 {[%emt 0:00:40]} 31. a4 {[%emt 0:00:33]} a5 {[%emt 0:00:10]} 32. Na3 {[%emt 0:00:52]} Be6 33. g4 {[%emt 0:02:03]} Bd5 {[%emt 0:02:12]} 34. Nb5 {[%emt 0:01:42]} Bc4 {[%emt 0:00:49]} 35. Nc3 {[%emt 0:00:34]} Bd3 36. Rc1 {[%emt 0:00:25]} Re6 {[%emt 0:01:24]} 37. Bf1 {[%emt 0:00:46]} Rf6 {[%emt 0:00:20]} 38. Rf2 {[%emt 0:01:28]} Rxf2 {[%emt 0:00:26]} 39. Kxf2 {[%emt 0:01:56]} Bxf1 {[%emt 0:00:18]} 40. Rxf1 {[%emt 0:00:20]} Rd6 {[%emt 0:00:49]} 41. Nxe4 {[%emt 0:30:13]} Re6 {[%emt 0:30:08]} 42. Nc3 {[%emt 0:02:44]} Rf6+ {[%emt 0:00:39]} 43. Ke2 {[%emt 0:00:09]} Rxf1 {[%emt 0:00:06]} 44. Kxf1 {[%emt 0:00:20]} Kg7 {[%emt 0:00:07]} 45. Ke2 {[%emt 0:00:24]} Kf6 {[%emt 0:00:05]} 46. Nd5+ Ke6 {[%emt 0:00:11]} 47. Nxb6 {[%emt 0:00:38]} cxb6 {[%emt 0:00:03]} 48. Kd3 {[%emt 0:00:32]} Kd5 {[%emt 0:00:30]} 49. e4+ {[%emt 0:00:21]} Kd6 {[%emt 0:00:04]} 50. Kc4 {[%emt 0:00:14]} Kd7 {[%emt 0:00:07]} 51. Kb5 {[%emt 0:00:08]} Kc7 {[%emt 0:00:07]} 52. d5 {[%emt 0:00:08]} f6 {[%emt 0:00:10]} 53. Kc4 {[%emt 0:00:24]} Kd6 {[%emt 0:00:06]} 54. Kd4 {[%emt 0:00:24]} Kd7 {[%emt 0:00:03]} 55. e5 {[%emt 0:00:08]} fxe5+ {[%emt 0:00:04]} 56. Kxe5 {[%emt 0:00:06]} Ke7 {[%emt 0:00:09]} 57. Kd4 {[%emt 0:00:37]} Kd6 {[%emt 0:00:07]} 58. Kc4 {[%emt 0:00:11]} Kd7 {[%emt 0:00:10]} 59. Kb5 {[%emt 0:00:07]} Kc7 {[%emt 0:00:04]} 1/2-1/2